{"text_format":"1","workbook":"xlsx","n_sheets":1,"sheets":["Sheet1"],"not_rendered":{"charts":0,"images":2,"macros":1,"external_links":0,"defined_names":2,"comments":0,"pivot_tables":0},"unopened":[],"bounds":{"document_bytes":16777216,"sheet_cells":100000,"rows_first":2000,"rows_last":500,"rows_between":2000,"halvings":0,"cell_chars":16384,"cell_head_chars":4096},"cells_cut":0,"cells_raw":0,"read":"whole","date_system":"1900"}

{"sheet":"Sheet1","index":0,"n_rows":26,"n_cols":16,"rows_kept":26,"cut":false,"hidden":false,"merged":[]}
[]
[null,"Top Row #s:","25, 50, 75, 100"]
[null,"Bottom Row #s:","1-10"]
[null,"from these 14 numbers, pick 6, with any standard arithmetic ops (+,-,*,/) to make the target value"]
[]
[]
[null,"Seconds of time allowed:",25]
[null,"pick # from top row:",2,null,null,null,null,null,null,null,null,null,null,"+",null,20]
[null,null,null,null,null,null,null,null,null,null,null,null,null,"-",null,25]
[null,null,null,null,null,null,null,null,null,null,null,null,null,"*",null,30]
[null,"Your #s:",null,null,null,null,null,null,null,null,null,null,null,"/",null,35]
[0,25,50,7,2,10,6,null,null,null,null,null,null,null,null,40]
[0,{"$f":"COUNTIF($B$12:$G$12,B12)","v":1},1,1,1,1,1,null,null,null,null,null,null,"(",null,45]
[null,"Your target:",145,null,"Your Total:",147]
[null,null,null,null,null,null,null,null,null,null,null,null,null,")"]
[null,"operand","(","number",")"]
[null,null,null,50,null,{"$f":"COUNTIF($D$17:$D$22,D17)","v":1},{"$f":"HLOOKUP(D17,$A$12:$G$13,2,FALSE)","v":1},{"$f":"IF(F17>G17,\"You CANNOT do THAT\",\"\")","v":""}]
[null,"*",null,6,null,1,1,""]
[null,"/",null,2,null,1,1,""]
[null,"-",null,10,null,1,1,""]
[null,"+",null,7,null,1,1,""]
[null,null,null,null,null,0,0,""]
[]
[null,null,null,{"$f":"C17&D17&B18&C18&D18&E18&B19&C19&D19&E19&B20&C20&D20&E20&B21&C21&D21&E21&B22&C22&D22&E22","v":"50*6/2-10+7"},{"$f":"eval","v":147}]
[]
[null,null,null,"score:",{"$f":"IF(ABS(C14-E24)=0,10,IF(ABS(C14-E24)<5,7,IF(ABS(C14-E24)<10,5,0)))","v":7}]